bitfinex-derivatives/quotes_SOLF0:USTF0_20250307
["timestamp","ask_amount","ask_price","bid_price","bid_amount"]
[1741356019708,3.02173709,144.35,144.33,207.98]
[1741356020013,47.19195958,144.46,144.33,255.22125846]
[1741356020208,22.49536407,144.36,144.33,255.17195958]
[1741356020408,22.49536407,144.35,144.33,207.98]
[1741356020609,22.49536407,144.35,144.33,208.03104429]
[1741356020809,0.04625823,144.35,144.33,208.03104429]
[1741356022809,25.56335939,144.35,144.33,208.03104429]
[1741356023110,0.04625823,144.35,144.33,208.03104429]
[1741356023705,0.04625823,144.35,144.33,255.22300387]
[1741356024017,47.19195958,144.48,144.33,255.22300387]
[1741356024211,22.49536407,144.41,144.36,47.19195958]
[1741356024411,22.49536407,144.42,144.37,37.68]
[1741356024612,22.49536407,144.43,144.37,37.68]
[1741356025209,47.19195958,144.51,144.37,37.68]
[1741356025210,37.64,144.56,144.42,47.19195958]
[1741356025410,22.49536407,144.47,144.43,37.64]
[1741356025814,22.49536407,144.46,144.43,37.64]
[1741356026012,22.54299621,144.46,144.44,0.04594648]
[1741356026315,25.5647333,144.46,144.44,0.04594648]
[1741356026511,0.04763214,144.46,144.44,0.04594648]
[1741356026711,25.5647333,144.46,144.44,0.04594648]
[1741356027015,22.49536407,144.45,144.44,0.04594648]
[1741356027420,25.51710116,144.45,144.44,0.04594648]
[1741356027810,22.49536407,144.45,144.39,37.52]
[1741356028119,22.49536407,144.43,144.39,37.52]
[1741356028311,26.26526407,144.44,144.39,84.71195958]
[1741356028609,29.28700116,144.44,144.39,84.71195958]
[1741356028810,22.49536407,144.42,144.39,84.71195958]
[1741356029006,22.49536407,144.42,144.4,0.05010849]
[1741356029212,0.04715727,144.43,144.4,0.05010849]
[1741356029809,22.49536407,144.42,144.4,37.69010849]
[1741356030020,0.04715727,144.43,144.4,37.69010849]
[1741356030214,0.04715727,144.43,144.42,47.19195958]
[1741356031220,0.04715727,144.43,144.4,0.05010849]
[1741356031522,25.56425843,144.43,144.41,37.6]
[1741356031712,0.04715727,144.43,144.41,37.6]
[1741356032110,25.56425843,144.43,144.41,37.6]
[1741356032717,22.49536407,144.42,144.41,37.6]
[1741356033117,3.06889436,144.43,144.41,37.6]
[1741356033118,0.04715727,144.43,144.41,37.6]
[1741356033517,22.49536407,144.42,144.41,37.6]
[1741356034015,25.51710116,144.42,144.4,37.47010849]
[1741356034224,22.49536407,144.41,144.4,0.05010849]
[1741356034423,22.49536407,144.37,144.33,47.19195958]
[1741356034719,22.49536407,144.36,144.33,84.59195958]
[1741356034922,22.49536407,144.39,144.33,84.59195958]
[1741356035117,22.49536407,144.41,144.36,47.19195958]
[1741356035424,22.49536407,144.38,144.34,47.19195958]
[1741356035616,0.04955337,144.4,144.34,47.19195958]
[1741356035815,0.04955337,144.4,144.35,0.04893819]
[1741356036021,22.49536407,144.39,144.35,0.04893819]
[1741356036225,22.49536407,144.37,144.35,0.04893819]
[1741356036723,0.04955337,144.4,144.35,0.04893819]
[1741356036931,22.49536407,144.39,144.35,0.04893819]
[1741356037522,22.49536407,144.38,144.35,0.04893819]
[1741356037825,0.04955337,144.4,144.37,47.19195958]
[1741356038023,0.04955337,144.4,144.38,37.28]
[1741356038423,0.04955337,144.4,144.39,207.72]
[1741356038823,3.81,144.51,144.39,207.72]
[1741356039123,22.49536407,144.45,144.42,47.19195958]
[1741356039327,22.49536407,144.43,144.39,254.91195958]
[1741356039527,22.49536407,144.42,144.39,254.91195958]
[1741356039821,3.7976,144.49,144.39,254.91195958]
[1741356039822,22.49536407,144.43,144.39,254.91195958]
[1741356040029,0.04861307,144.42,144.39,207.76696811]
[1741356040422,3.7976,144.49,144.4,62.0]
[1741356040627,22.49536407,144.45,144.4,62.0]
[1741356040829,22.49536407,144.46,144.4,62.0]
[1741356041125,0.04953934,144.46,144.43,0.05116027]
[1741356041326,0.04953934,144.46,144.44,84.31195958]
[1741356041526,22.49536407,144.45,144.44,91.23405958]
[1741356041731,22.49536407,144.45,144.44,37.12]
[1741356042034,0.04953934,144.46,144.45,6.9219]
[1741356043036,3.934e-05,144.46,144.45,6.9219]
[1741356044938,3.379e-05,144.53,144.52,54.11055958]
[1741356045133,3.379e-05,144.53,144.52,298.97055958]
[1741356045533,28.35555575,144.69,144.52,535.70391916]
[1741356045733,22.49536407,144.63,144.62,47.19195958]
[1741356045932,22.49536407,144.63,144.55,47.19195958]
[1741356045933,22.49536407,144.63,144.59,84.54385367]
[1741356046232,22.49536407,144.6,144.59,37.35189409]
[1741356046435,22.49536407,144.6,144.59,37.3]
[1741356046732,28.35555575,144.69,144.59,37.3]
[1741356046733,0.05178026,144.61,144.59,37.3]
[1741356046937,22.49536407,144.6,144.56,37.3]
[1741356047140,0.05055092,144.61,144.59,0.04445456]
[1741356047334,22.49536407,144.6,144.56,37.3]
[1741356047532,22.49536407,144.57,144.56,37.3]
[1741356047733,22.49536407,144.57,144.52,299.13015958]
[1741356048033,22.49536407,144.57,144.52,292.21195958]
[1741356048236,7.7759,144.59,144.52,292.21195958]
[1741356048237,22.49536407,144.56,144.53,6.9181]
[1741356048539,22.54230844,144.56,144.53,0.04484186]
[1741356049041,0.04694437,144.56,144.54,6.9172]
[1741356049239,0.04694437,144.56,144.53,0.04484186]
[1741356049538,47.19195958,144.69,144.55,47.19195958]
[1741356049739,22.49536407,144.61,144.58,47.19195958]
[1741356049938,22.49536407,144.62,144.59,37.32]
[1741356050139,22.49536407,144.62,144.59,44.2352]
[1741356050340,22.49536407,144.62,144.61,47.19195958]
[1741356050528,22.49536407,144.62,144.6,47.19195958]
[1741356050729,22.49536407,144.62,144.6,47.2451191]
[1741356051140,0.05313462,144.63,144.61,207.6]
[1741356051734,22.49536407,144.62,144.6,0.05315952]
[1741356052036,22.49536407,144.62,144.55,244.72]
[1741356052037,22.49536407,144.61,144.55,214.4568]
[1741356052239,22.49536407,144.58,144.55,207.54]
[1741356052629,3.8017,144.61,144.55,207.54]
[1741356052834,22.49536407,144.59,144.57,47.19195958]
[1741356053039,0.04957889,144.59,144.57,47.23666184]
[1741356053236,0.04957889,144.59,144.58,6.9157]
[1741356053438,0.04957889,144.59,144.58,43.9957]
[1741356053639,7.889e-05,144.59,144.58,43.9957]
[1741356054232,3.8017,144.72,144.65,47.19195958]
[1741356054432,22.49536407,144.68,144.65,47.19195958]
[1741356054739,22.49536407,144.67,144.65,47.19195958]
[1741356054936,22.49536407,144.66,144.64,244.62]
[1741356055136,22.49536407,144.65,144.64,244.62]
[1741356055336,22.49536407,144.65,144.64,207.55289815]
[1741356055642,0.04493457,144.66,144.64,207.55289815]
[1741356055844,22.54029864,144.66,144.64,207.55289815]
[1741356056544,0.04493457,144.66,144.65,6.9124]
[1741356057739,0.04493457,144.66,144.64,207.55289815]
[1741356058052,22.54029864,144.66,144.64,207.55289815]
[1741356058241,22.49536407,144.65,144.64,207.55289815]
[1741356058744,22.49536407,144.65,144.64,214.46539815]
[1741356058945,0.04493457,144.66,144.64,207.55289815]
[1741356059147,22.49536407,144.65,144.64,207.55289815]
[1741356060346,22.49536407,144.65,144.59,47.19195958]
[1741356060546,4.0356,144.64,144.59,47.19195958]
[1741356060741,12.03146407,144.62,144.59,47.19195958]
[1741356060944,12.03146407,144.61,144.59,47.19195958]
[1741356061246,12.03146407,144.6,144.58,244.46]
[1741356061439,12.03146407,144.6,144.59,0.05142327]
[1741356061643,0.0523068,144.61,144.59,0.05142327]
[1741356061846,12.03146407,144.6,144.59,0.05142327]
[1741356062243,20.11536407,144.6,144.58,207.44]
[1741356062544,20.11536407,144.6,144.55,47.19195958]
[1741356062545,12.03146407,144.59,144.55,6.9168]
[1741356062845,12.03146407,144.56,144.55,6.9168]
[1741356063347,4.067e-05,144.57,144.55,47.19195958]
[1741356063550,12.03146407,144.59,144.55,47.19195958]
[1741356063750,12.03146407,144.59,144.58,47.19195958]
[1741356063943,194.0,144.69,144.58,84.03195958]
[1741356064148,12.03146407,144.62,144.58,84.03195958]
[1741356064450,12.03146407,144.62,144.61,47.19195958]
[1741356064644,6.9109,144.69,144.62,6.9137]
[1741356064850,12.03146407,144.62,144.6,47.19195958]
[1741356065147,12.0821477,144.62,144.6,47.19195958]
[1741356065346,12.0821477,144.62,144.6,47.23752791]
[1741356065548,12.0821477,144.62,144.61,6.9143]
[1741356066251,12.0821477,144.62,144.6,47.23752791]
[1741356066445,12.03146407,144.61,144.6,47.23752791]
[1741356066646,12.03146407,144.61,144.6,0.04556833]
[1741356067052,12.03146407,144.61,144.55,83.93195958]
[1741356067053,12.03146407,144.61,144.55,47.19195958]
[1741356067261,12.03146407,144.56,144.55,47.19195958]
[1741356067459,12.03146407,144.57,144.55,47.19195958]
[1741356067657,12.03146407,144.58,144.55,47.19195958]
[1741356068056,12.03146407,144.56,144.55,54.10895958]
[1741356068362,12.03146407,144.56,144.55,47.2415121]
[1741356068568,12.03146407,144.56,144.55,54.1586121]
[1741356068862,12.03146407,144.56,144.55,0.04955252]
[1741356069262,12.03146407,144.56,144.5,47.19195958]
[1741356069463,0.05209804,144.58,144.5,47.19195958]
[1741356069759,12.03146407,144.53,144.52,6.9186]
[1741356070069,12.03146407,144.51,144.47,83.85195958]
[1741356070267,12.03146407,144.5,144.47,83.85195958]
[1741356070566,12.07925879,144.5,144.48,0.05049637]
[1741356070758,9.472e-05,144.5,144.49,6.92]
[1741356071562,12.03155879,144.5,144.48,0.05049637]
[1741356071759,12.03146407,144.49,144.48,0.05049637]
[1741356072566,9.472e-05,144.5,144.48,0.05049637]
[1741356072759,9.472e-05,144.5,144.49,36.52]
[1741356073069,4.0414,144.61,144.49,36.52]
[1741356073265,3.9675,144.6,144.52,47.19195958]
[1741356073762,3.9675,144.6,144.57,6.9158]
[1741356073967,3.9675,144.6,144.55,83.67195958]
[1741356074166,0.04480139,144.6,144.57,0.04600977]
[1741356075773,6.95970139,144.6,144.54,207.48]
[1741356075960,3.8233,144.59,144.46,47.19195958]
[1741356076166,47.19195958,144.57,144.43,47.19195958]
[1741356076370,36.4,144.56,144.49,6.9199]
[1741356076563,40.4609,144.56,144.43,47.19195958]
[1741356077173,0.04515252,144.51,144.48,0.04639322]
[1741356077565,5.252e-05,144.51,144.49,47.19195958]
[1741356077769,5.252e-05,144.51,144.5,6.9195]
[1741356077965,194.0,144.68,144.49,50.65195958]
[1741356078173,198.0608,144.68,144.58,47.19195958]
[1741356078369,226.41635575,144.68,144.58,36.4]
[1741356078671,47.19195958,144.66,144.52,83.59195958]
[1741356078861,36.4,144.65,144.52,83.59195958]
[1741356079270,0.05116447,144.6,144.57,0.04514074]
[1741356079465,36.45116447,144.6,144.49,83.59195958]
[1741356079670,197.8824,144.59,144.49,36.4]
[1741356080275,6.9165,144.57,144.51,6.919]
[1741356080470,0.04635154,144.55,144.53,0.04467727]
[1741356080673,0.04635154,144.55,144.49,36.4]
[1741356080874,0.04635154,144.55,144.52,6.9183]
[1741356081070,0.04635154,144.55,144.49,36.4]
[1741356081370,6.96355154,144.55,144.5,6.9192]
[1741356081567,0.04635154,144.55,144.49,36.4]
[1741356081774,0.04635154,144.55,144.51,0.04545719]
[1741356081967,0.04635154,144.55,144.52,6.9183]
[1741356082166,0.04635154,144.55,144.51,0.04545719]
[1741356082568,83.63831112,144.55,144.42,207.54]
[1741356082871,83.59195958,144.55,144.42,207.54]
[1741356083467,36.4,144.55,144.44,47.19195958]
[1741356083868,36.4,144.55,144.48,0.04620181]
[1741356083869,0.04528102,144.51,144.48,0.04620181]
[1741356085471,0.04528102,144.51,144.42,207.54]
[1741356085678,47.19195958,144.53,144.42,207.54]
[1741356085869,6.9213,144.47,144.42,207.54]
[1741356086173,83.61195958,144.5,144.38,47.19195958]
[1741356086371,47.19195958,144.47,144.34,47.19195958]
[1741356086566,47.19195958,144.44,144.31,47.19195958]
[1741356086880,0.04809638,144.42,144.39,0.0491214]
[1741356087171,288.38391916,144.41,144.27,37.66673801]
[1741356087372,47.19195958,144.35,144.27,37.66673801]
[1741356087576,83.61195958,144.35,144.27,37.66673801]
[1741356087970,6.9266,144.36,144.29,6.9295]
[1741356088182,0.04592278,144.32,144.3,0.04564065]
[1741356088364,201.8813,144.4,144.3,0.04564065]
[1741356088564,0.05224361,144.32,144.28,47.19195958]
[1741356088775,201.8813,144.4,144.29,70.0246]
[1741356088978,7.8813,144.4,144.34,0.04985134]
[1741356089286,4.0842,144.4,144.34,0.04985134]
[1741356089580,7.7513,144.46,144.34,47.24181092]
[1741356089783,6.922,144.45,144.34,54.16891092]
[1741356089971,0.04389962,144.38,144.34,47.19195958]
[1741356090278,7.7513,144.46,144.38,0.05116948]
[1741356090578,7.7513,144.46,144.34,47.19195958]
[1741356090776,0.0526476,144.43,144.31,47.19195958]
[1741356090977,277.61195958,144.42,144.29,8.0246]
[1741356091280,6.9247,144.4,144.29,8.0246]
[1741356091478,277.61195958,144.42,144.29,8.0246]
[1741356091976,0.04885212,144.37,144.34,0.04591967]
[1741356092274,83.61195958,144.36,144.19,207.64]
[1741356092479,83.61195958,144.36,144.25,6.9312]
[1741356092480,201.8943,144.35,144.25,6.9312]
[1741356092778,201.8943,144.35,144.21,87.65175958]
[1741356092965,208.8212,144.35,144.21,87.65175958]
[1741356093173,201.8943,144.35,144.21,87.65175958]
[1741356093477,0.05271747,144.29,144.27,0.04886377]
[1741356093975,6.9288,144.31,144.21,51.23175958]
[1741356094387,0.051101,144.29,144.21,51.23175958]
[1741356094573,0.051101,144.29,144.24,6.9319]
[1741356094879,0.051101,144.29,144.21,51.23175958]
[1741356095279,0.051101,144.29,144.24,0.04929218]
[1741356097781,0.051101,144.29,144.25,6.9312]
[1741356097982,0.051101,144.29,144.24,36.50929218]
[1741356098378,0.051101,144.29,144.28,6.9301]
[1741356098580,0.051101,144.29,144.24,36.46]
[1741356098986,0.051101,144.29,144.28,6.9301]
[1741356099184,0.051101,144.29,144.27,0.04836375]
[1741356099578,6.980701,144.29,144.27,0.04836375]
[1741356099778,0.051101,144.29,144.27,0.04836375]
[1741356099989,0.051101,144.29,144.27,6.97876375]
[1741356100184,0.051101,144.29,144.27,0.04836375]
[1741356100682,0.051101,144.29,144.28,6.9301]
[1741356101084,47.19195958,144.39,144.33,6.9276]
[1741356101283,36.46,144.39,144.29,36.46]
[1741356101489,206.86128836,144.43,144.3,47.19195958]
[1741356101792,197.7176,144.43,144.33,47.19195958]
[1741356101976,197.7176,144.43,144.34,36.46]
[1741356102178,197.7176,144.43,144.3,51.18305958]
[1741356102375,47.19195958,144.39,144.29,36.46]
[1741356102587,47.19195958,144.39,144.28,207.82]
[1741356102789,10.7429,144.38,144.31,6.9285]
[1741356102982,3.8175,144.38,144.28,207.82]
[1741356103380,83.65195958,144.37,144.28,207.82]
[1741356103580,0.0457489,144.34,144.32,0.04651978]
[1741356103985,7.6736,144.42,144.32,0.04651978]
[1741356104185,3.7176,144.43,144.33,47.19195958]
[1741356104384,3.7176,144.43,144.33,51.24505958]
[1741356105292,0.04557639,144.39,144.37,0.04815452]
[1741356105588,0.04557639,144.39,144.38,6.9252]
[1741356105794,0.04557639,144.39,144.37,0.04815452]
[1741356106588,0.04557639,144.39,144.38,6.9253]
[1741356106787,197.9583,144.47,144.37,3.76405452]
[1741356106984,3.9583,144.47,144.37,3.7159]
[1741356107180,10.8796,144.47,144.4,6.924]
[1741356107485,40.1872,144.5,144.41,36.46]
[1741356107486,3.7272,144.5,144.41,36.46]
[1741356107992,0.05235238,144.47,144.44,0.05099417]
[1741356108384,40.5361,144.53,144.42,47.19195958]
[1741356108688,4.0761,144.53,144.45,47.19195958]
[1741356108887,36.44,144.58,144.46,36.44]
[1741356109288,36.44,144.58,144.48,6.9204]
[1741356109589,36.44,144.58,144.47,3.8722]
[1741356109887,6.9166,144.57,144.47,3.8722]
[1741356110086,0.05313602,144.54,144.51,0.04629067]
[1741356110283,0.05313602,144.54,144.51,36.48629067]
[1741356110988,0.05313602,144.54,144.51,0.04629067]
[1741356111683,6.9186,144.52,144.51,0.04629067]
[1741356111992,0.05313602,144.54,144.43,47.19195958]
[1741356111993,47.19195958,144.53,144.43,44.2702]
[1741356112189,47.19195958,144.5,144.4,207.7]
[1741356112394,4.0581,144.49,144.4,207.7]
[1741356112591,10.9785,144.49,144.42,6.9229]
[1741356112792,4.0581,144.49,144.4,207.7]
[1741356113093,4.0581,144.49,144.44,0.05029909]
[1741356113094,0.04617498,144.47,144.44,0.05029909]
[1741356113395,36.44,144.47,144.36,36.44]
[1741356113592,83.63195958,144.47,144.35,11.6089]
[1741356113785,83.63195958,144.47,144.35,48.0489]
[1741356114389,83.63195958,144.47,144.36,47.19195958]
[1741356114593,0.04842276,144.42,144.4,0.04869769]
[1741356114994,6.922,144.45,144.4,0.04869769]
[1741356115195,0.04720197,144.42,144.4,0.04869769]
[1741356115595,6.9218,144.46,144.39,6.9244]
[1741356115897,0.04585892,144.42,144.4,0.05010672]
[1741356116402,0.04722783,144.42,144.4,0.04643948]
[1741356117392,0.04722783,144.42,144.41,36.44]
[1741356118298,3.7482,144.52,144.41,36.44]
[1741356118494,7.9736,144.54,144.42,51.29085958]
[1741356119193,6.9192,144.51,144.43,3.7378]
[1741356119401,0.0501726,144.49,144.47,0.05321312]
[1741356119697,7.9736,144.54,144.47,0.05321312]
[1741356119898,0.04451126,144.49,144.47,0.05321312]
[1741356120198,3.9333,144.54,144.47,0.05321312]
[1741356120394,0.04963859,144.49,144.47,0.05321312]
[1741356120601,3.9333,144.54,144.47,0.05321312]
[1741356120794,7.7259,144.57,144.47,0.05321312]
[1741356120795,0.05078639,144.49,144.47,0.05321312]
[1741356121100,0.04619305,144.49,144.46,36.44]
[1741356121287,0.04619305,144.49,144.47,0.0485719]
[1741356121889,40.3342,144.57,144.47,0.0485719]
[1741356122301,40.3342,144.57,144.46,36.44]
[1741356122995,6.919,144.52,144.46,43.3611]
[1741356123197,0.0503594,144.53,144.5,0.04856664]
[1741356123403,6.9189,144.52,144.5,0.04856664]
[1741356123596,0.0503594,144.53,144.5,0.04856664]
[1741356123996,6.9187,144.52,144.5,0.04856664]
[1741356124204,0.0503594,144.53,144.5,0.04856664]
[1741356125501,6.9189,144.52,144.5,0.04856664]
[1741356125692,0.0503594,144.53,144.5,0.04856664]
[1741356126695,0.0503594,144.53,144.5,6.96776664]
[1741356127198,0.0503594,144.53,144.51,6.9188]
[1741356127397,0.0503594,144.53,144.5,0.04856664]
[1741356128107,3.8178,144.59,144.51,36.42]
[1741356128302,6.9168,144.56,144.51,36.42]
[1741356128606,3.8178,144.59,144.51,36.42]
[1741356129196,0.04560544,144.56,144.54,0.05011985]
[1741356130395,0.04560544,144.56,144.46,36.4]
[1741356130711,3.7586,144.59,144.47,47.19195958]
[1741356131206,277.59195958,144.6,144.47,109.19195958]
[1741356131502,0.04586339,144.54,144.52,0.04919079]
[1741356131895,6.9168,144.56,144.52,0.04919079]
[1741356132206,6.9181,144.53,144.52,0.04919079]
[1741356132706,6.9199,144.5,144.46,36.4]
[1741356132908,0.05163708,144.54,144.46,36.4]
[1741356133203,43.3173,144.55,144.46,36.4]
[1741356133400,43.3173,144.55,144.47,3.993]
[1741356133602,47.19195958,144.57,144.47,3.993]
[1741356134000,36.4,144.58,144.47,3.993]
[1741356134001,0.05045946,144.52,144.5,0.04581236]
[1741356134203,0.05045946,144.52,144.51,6.9191]
[1741356134401,43.3159,144.58,144.5,0.04581236]
[1741356134603,0.04586236,144.53,144.5,0.04581236]
[1741356134801,194.0,144.59,144.47,51.18495958]
[1741356135004,0.04753675,144.53,144.5,0.04519047]
[1741356135204,0.04753675,144.53,144.51,6.9187]
[1741356135406,36.4,144.6,144.48,62.0]
[1741356135703,0.05306656,144.53,144.5,0.04622233]
[1741356135905,0.05306656,144.53,144.47,3.993]
[1741356136205,0.04910535,144.53,144.5,0.04858207]
[1741356137908,0.04910535,144.53,144.52,6.9186]
[1741356138301,36.4,144.6,144.5,0.04858207]
[1741356138504,6.9179,144.54,144.49,6.9198]
[1741356138707,36.4,144.6,144.47,3.993]
[1741356138909,194.0,144.59,144.47,3.993]
[1741356139108,6.9164,144.57,144.52,6.9183]
[1741356139310,194.0,144.59,144.47,3.993]
[1741356139608,0.04527676,144.56,144.53,0.04726522]
[1741356143318,6.9176,144.54,144.53,0.04726522]
[1741356143516,0.04527676,144.56,144.53,0.04726522]
[1741356144309,6.96227676,144.56,144.53,0.04726522]
[1741356144703,0.04527676,144.56,144.53,0.04726522]
[1741356145315,6.96207676,144.56,144.53,0.04726522]
[1741356145510,0.04527676,144.56,144.53,0.04726522]
[1741356145812,6.9174,144.55,144.53,0.04726522]
[1741356146018,0.04527676,144.56,144.53,0.04726522]
[1741356146917,0.04527676,144.56,144.53,6.96526522]
[1741356147512,0.04527676,144.56,144.53,0.04726522]
[1741356148213,6.9174,144.55,144.53,0.04726522]
[1741356148611,6.9176,144.54,144.53,0.04726522]
[1741356149116,0.04527676,144.56,144.53,0.04726522]
[1741356149311,6.9174,144.55,144.53,0.04726522]
[1741356149518,0.04527676,144.56,144.53,0.04726522]
[1741356149714,6.9176,144.54,144.53,0.04726522]
[1741356150014,0.04527676,144.56,144.53,0.04726522]
[1741356150419,6.9176,144.54,144.53,0.04726522]
[1741356151217,6.9194,144.51,144.47,207.58]
[1741356151518,3.8749,144.55,144.47,214.5009]
[1741356151823,3.8749,144.55,144.46,6.9214]
[1741356152023,7.99,144.55,144.43,32.69120666]
[1741356152220,7.99,144.55,144.43,69.07120666]
[1741356152522,6.9199,144.5,144.48,0.05135406]
[1741356153328,0.05090866,144.51,144.48,0.05135406]
[1741356153624,36.43090866,144.51,144.41,207.56]
[1741356153826,36.43090866,144.51,144.41,211.5902]
[1741356154225,36.38,144.51,144.41,211.5902]
[1741356154722,36.38,144.51,144.45,0.0486168]
[1741356154925,0.0532476,144.47,144.45,0.0486168]
[1741356156025,103.27963765,144.59,144.46,272.91340666]
[1741356156326,103.27963765,144.59,144.49,28.95340666]
[1741356156527,46.03604581,144.54,144.5,66.0583]
[1741356157116,0.0523169,144.53,144.51,0.0510913]
[1741356158522,39.83994581,144.54,144.52,28.95340666]
[1741356158830,74.9240819,144.64,144.53,36.38]
[1741356159024,74.9240819,144.64,144.55,28.95340666]
[1741356159628,0.04709333,144.6,144.57,0.05177565]
[1741356161131,0.04709333,144.6,144.5,28.95340666]
[1741356161328,40.4648,144.62,144.51,36.38]
[1741356162129,0.05202606,144.58,144.55,0.04889277]
[1741356163538,0.05202606,144.58,144.56,6.9164]
[1741356163933,0.05202606,144.58,144.55,0.04889277]
[1741356167534,0.05202606,144.58,144.55,6.96589277]
[1741356167931,0.05202606,144.58,144.56,36.36]
[1741356168143,198.0137,144.67,144.56,65.31340666]
[1741356168338,3.7357,144.66,144.53,90.95340666]
[1741356168644,28.95340666,144.61,144.5,28.95340666]
[1741356168836,65.31340666,144.61,144.5,28.95340666]
[1741356169142,36.36,144.64,144.53,28.95340666]
[1741356169442,0.0467921,144.57,144.54,36.40968675]
[1741356169643,28.95340666,144.64,144.54,36.36]
[1741356169837,0.04842176,144.57,144.54,36.40530851]
[1741356170142,28.95340666,144.64,144.54,36.36]
[1741356170344,0.05016687,144.57,144.54,36.40847928]
[1741356170542,28.95340666,144.64,144.54,36.36]
[1741356170744,0.0497656,144.57,144.54,36.41139881]
[1741356170935,28.95340666,144.64,144.54,36.36]
[1741356171430,0.04407058,144.6,144.58,0.04676207]
[1741356171939,0.04407058,144.6,144.54,36.36]
[1741356172328,0.04407058,144.6,144.51,65.29340666]
[1741356172536,36.34,144.62,144.51,65.29340666]
[1741356172738,36.34,144.65,144.54,28.95340666]
[1741356172940,6.9141,144.62,144.54,28.95340666]
[1741356173141,0.05085106,144.61,144.58,0.05288563]
[1741356173538,6.9152,144.59,144.58,0.05288563]
[1741356173747,0.05085106,144.61,144.53,36.34]
[1741356174135,222.95340666,144.64,144.53,36.34]
[1741356174335,222.95340666,144.64,144.5,36.34]
[1741356175033,0.04501301,144.58,144.56,0.05170155]
[1741356175235,6.9162,144.57,144.56,0.05170155]
[1741356175437,0.0442492,144.58,144.48,32.97220666]
[1741356175640,36.34,144.58,144.48,32.97220666]
[1741356175842,65.29340666,144.58,144.48,4.0188]
[1741356176043,65.29340666,144.58,144.47,9.43619129]
[1741356176243,6.919,144.52,144.48,6.92]
[1741356176443,65.29340666,144.58,144.47,9.43619129]
[1741356176743,6.9174,144.55,144.51,6.919]
[1741356176944,0.04477692,144.54,144.47,9.43619129]
[1741356177137,0.04477692,144.54,144.52,0.05034261]
[1741356177335,0.04477692,144.54,144.49,36.34]
[1741356177534,0.04477692,144.54,144.52,0.04567189]
[1741356178647,36.34,144.65,144.52,28.99907855]
[1741356178943,6.9139,144.62,144.56,6.9166]
[1741356179338,36.34,144.65,144.56,6.9166]
[1741356179540,7.8239,144.67,144.58,6.9157]
[1741356179744,0.05150748,144.62,144.59,0.04751594]
[1741356181638,6.96540748,144.62,144.59,0.04751594]
[1741356181835,0.05150748,144.62,144.59,0.04751594]
[1741356182053,0.05150748,144.62,144.55,207.52]
[1741356182255,36.34,144.61,144.5,3.7802]
[1741356182541,28.95340666,144.57,144.49,207.52]
[1741356182746,6.9181,144.54,144.48,6.9202]
[1741356182945,36.34,144.56,144.45,36.34]
[1741356183146,0.05202957,144.52,144.5,0.04799899]
[1741356184445,0.05202957,144.52,144.5,29.00140565]
[1741356184651,13.8206,144.7,144.5,29.00140565]
[1741356184652,28.95340666,144.66,144.5,40.37980565]
[1741356184841,7.5162,144.65,144.54,28.95340666]
[1741356185044,7.5162,144.65,144.51,0.2437]
[1741356185045,14.4289,144.65,144.59,6.9149]
[1741356185255,7.5162,144.65,144.57,65.29340666]
[1741356185752,0.04397568,144.62,144.6,0.04609824]
[1741356187351,6.9143,144.61,144.6,0.04609824]
[1741356187655,0.04397568,144.62,144.6,0.04609824]
[1741356188360,6.9143,144.61,144.6,0.04609824]
[1741356188564,0.04397568,144.62,144.52,46.97136821]
[1741356188748,0.04397568,144.62,144.51,36.32]
[1741356188952,6.9169,144.56,144.5,207.52]
[1741356189153,36.32,144.59,144.5,207.52]
[1741356189757,0.05184281,144.56,144.53,0.04743643]
[1741356190659,0.05184281,144.56,144.5,207.52]
[1741356191962,0.05184281,144.56,144.55,6.9171]
[1741356192255,36.32,144.63,144.54,46.97136821]
[1741356192448,7.9119,144.64,144.54,46.97136821]
[1741356192652,7.9119,144.64,144.53,40.1485]
[1741356193061,7.9119,144.64,144.58,6.9157]
[1741356193365,7.9119,144.64,144.53,40.1485]
[1741356193563,0.04993836,144.62,144.6,0.0504406]
[1741356193861,0.04993836,144.62,144.6,0.04393639]
[1741356194355,0.04993836,144.62,144.6,6.95863639]
[1741356194554,0.04993836,144.62,144.6,0.04393639]
[1741356197250,6.96393836,144.62,144.6,0.04393639]
[1741356197454,0.04993836,144.62,144.6,0.04393639]
[1741356199059,0.04993836,144.62,144.6,6.95833639]